bitfinex/quotes_SOLUSD_20250609
["timestamp","ask_amount","ask_price","bid_price","bid_amount"]
[1749469619020,17.28984552,156.01,156.0,808.85677789]
[1749469620039,52.79239519,156.01,156.0,808.85677789]
[1749469620654,6.40961253,156.02,156.0,808.85677789]
[1749469620832,17.28961253,156.02,156.0,808.85677789]
[1749469621033,20.38254967,156.02,156.0,808.85677789]
[1749469621232,26.79213827,156.02,156.0,808.85677789]
[1749469623056,9.50254967,156.02,156.0,808.85677789]
[1749469623261,93.13147193,156.04,156.01,1.6045]
[1749469623444,9.50254967,156.03,156.0,808.85677789]
[1749469625162,15.91176183,156.03,156.0,808.85677789]
[1749469625357,35.50254967,156.04,156.0,818.35932756]
[1749469625561,41.91134352,156.04,156.0,818.35932756]
[1749469626260,35.50254967,156.04,156.0,818.35932756]
[1749469626463,26.0,156.04,156.0,824.76945535]
[1749469626666,35.50254967,156.04,156.0,824.76945535]
[1749469626973,35.50254967,156.04,156.0,818.35932756]
[1749469627338,6.40731671,156.08,156.01,24.97001043]
[1749469627541,9.50254967,156.07,156.03,9.50254967]
[1749469627776,9.50254967,156.05,156.02,40.34]
[1749469628971,6.40796721,156.06,156.02,49.84254967]
[1749469629264,15.91036425,156.06,156.02,49.84254967]
[1749469629462,15.91036425,156.06,156.02,56.2519762]
[1749469629774,15.9100914,156.07,156.02,56.2519762]
[1749469630068,9.50254967,156.07,156.03,9.50254967]
[1749469630269,41.90957892,156.08,156.03,9.50254967]
[1749469630775,41.90957892,156.08,156.03,15.91135167]
[1749469631145,41.90957892,156.08,156.04,1.578]
[1749469631363,41.90957892,156.08,156.04,11.08054967]
[1749469631565,9.50254967,156.07,156.04,1.578]
[1749469632069,9.50254967,156.05,156.01,6.1782]
[1749469632367,9.50254967,156.05,156.01,15.68074967]
[1749469632569,9.50254967,156.06,156.02,9.50254967]
[1749469633071,9.50254967,156.06,156.01,15.68074967]
[1749469633072,15.91057644,156.06,156.01,15.68074967]
[1749469633742,9.50254967,156.05,156.01,15.68074967]
[1749469634357,9.50254967,156.05,156.01,6.1782]
[1749469634557,9.50254967,156.05,156.01,15.68074967]
[1749469634772,15.91091491,156.05,156.01,15.68074967]
[1749469635271,9.50254967,156.04,156.01,6.1782]
[1749469636767,15.91131028,156.04,156.01,6.1782]
[1749469639061,6.40876061,156.04,156.01,6.1782]
[1749469639265,15.91131028,156.04,156.01,6.1782]
[1749469639769,9.50254967,156.02,156.01,6.1782]
[1749469639964,9.50254967,156.02,156.0,808.85677789]
[1749469640168,9.50254967,156.01,156.0,808.85677789]
[1749469640979,15.91239519,156.01,156.0,808.85677789]
[1749469643781,9.50254967,156.01,156.0,808.85677789]
[1749469643988,10.8,156.03,156.0,818.35932756]
[1749469645877,10.8,156.03,156.0,824.76952302]
[1749469646079,10.8,156.03,156.0,824.76957488]
[1749469646685,10.8,156.03,156.0,824.76957536]
[1749469647203,9.50254967,156.05,156.01,9.50254967]
[1749469647369,15.91073278,156.06,156.01,15.91229175]
[1749469647572,10.8,156.07,156.02,17.35594967]
[1749469647573,26.71006253,156.07,156.02,17.35594967]
[1749469648176,9.50254967,156.06,156.02,17.35594967]
[1749469648777,9.50254967,156.06,156.02,23.76533648]
[1749469648980,9.50254967,156.06,156.02,23.76536089]
[1749469649195,20.30254967,156.07,156.03,9.50254967]
[1749469649675,26.71002772,156.07,156.02,23.76536089]
[1749469649877,10.8,156.07,156.03,9.50254967]
[1749469650196,10.8,156.07,156.04,9.50254967]
[1749469650398,26.25610907,156.11,156.06,9.50254967]
[1749469650573,16.7535594,156.11,156.07,9.50254967]
[1749469650775,9.50254967,156.09,156.05,40.18]
[1749469650974,9.50254967,156.08,156.05,40.18]
[1749469651300,9.50254967,156.08,156.03,28.2943601]
[1749469651301,9.50254967,156.08,156.03,9.50254967]
[1749469651891,9.50254967,156.07,156.03,9.50254967]
[1749469652103,9.50254967,156.07,156.02,63.94508674]
[1749469652682,9.50254967,156.07,156.03,15.91156771]
[1749469652893,9.50254967,156.07,156.03,9.50254967]
[1749469653091,15.91012576,156.07,156.03,9.50254967]
[1749469653287,9.50254967,156.06,156.02,48.0334]
[1749469653603,9.50254967,156.06,156.02,63.94521379]
[1749469653787,9.50254967,156.06,156.02,57.53594967]
[1749469654678,15.91094758,156.05,156.02,7.8534]
[1749469654876,9.50254967,156.04,156.02,7.8534]
[1749469655206,9.50254967,156.04,156.02,6.3178]
[1749469655901,9.50254967,156.04,156.0,808.85677789]
[1749469656280,17.20826639,156.05,156.0,818.35932756]
[1749469656502,9.50254967,156.04,156.0,818.35932756]
[1749469656897,15.91120452,156.04,156.0,818.35932756]
[1749469657284,9.50254967,156.04,156.0,824.76957937]
[1749469657911,10.8,156.05,156.02,9.50254967]
[1749469658198,10.8,156.05,156.01,9.50254967]
[1749469658505,20.30254967,156.05,156.0,824.76957937]
[1749469658673,9.50254967,156.04,156.0,824.76957937]
[1749469659211,15.91125169,156.04,156.0,808.85677789]
[1749469660291,9.50254967,156.04,156.0,818.35932756]
[1749469660882,9.50254967,156.04,156.0,824.76952981]
[1749469661085,15.91118049,156.04,156.0,824.76952981]
[1749469661284,15.91118049,156.04,156.0,818.35932756]
[1749469661699,6.40863082,156.04,156.0,818.35932756]
[1749469662003,15.91118049,156.04,156.0,818.35932756]
[1749469662386,15.91118049,156.04,156.0,808.85677789]
[1749469663398,17.2083234,156.05,156.0,815.26690794]
[1749469663602,26.71087307,156.05,156.0,824.76945761]
[1749469663907,9.50254967,156.04,156.0,824.76945761]
[1749469664089,9.50254967,156.04,156.0,808.85677789]
[1749469664294,9.50254967,156.03,156.0,808.85677789]
[1749469664710,9.50254967,156.02,156.0,808.85677789]
[1749469664908,9.50254967,156.01,156.0,808.85677789]
[1749469665100,26.0,156.02,156.0,808.85677789]
[1749469665296,9.50254967,156.03,156.0,808.85677789]
[1749469665709,9.50254967,156.03,156.0,815.26694392]
[1749469665910,9.50254967,156.03,156.0,808.85677789]
[1749469666805,46.69474409,156.04,156.0,824.76939116]
[1749469667289,46.69474409,156.04,156.0,818.35932756]
[1749469667911,46.69474409,156.04,156.0,808.85677789]
[1749469668117,46.69474409,156.04,156.0,818.35932756]
[1749469668589,46.69474409,156.04,156.0,808.85677789]
[1749469668789,9.50254967,156.02,156.0,808.85677789]
[1749469669188,15.91220188,156.02,156.0,808.85677789]
[1749469669382,9.50254967,156.01,156.0,808.85677789]
[1749469671285,15.91239519,156.01,156.0,808.85677789]
[1749469673112,41.91239519,156.01,156.0,808.85677789]
[1749469673288,46.6959727,156.01,156.0,808.85677789]
[1749469673487,82.01239519,156.01,156.0,808.85677789]
[1749469673716,86.7959727,156.01,156.0,808.85677789]
[1749469674511,77.29342303,156.01,156.0,808.85677789]
[1749469674722,44.88357751,156.01,156.0,808.85677789]
[1749469674891,15.91215436,156.02,156.0,808.85677789]
[1749469675090,14.28612718,156.02,156.0,808.85677789]
[1749469675295,9.50254967,156.02,156.0,808.85677789]
[1749469675721,30.78357751,156.03,156.0,808.85677789]
[1749469675922,9.50254967,156.02,156.0,808.85677789]
[1749469676426,15.91224629,156.02,156.0,808.85677789]
[1749469677115,6.40969662,156.02,156.0,808.85677789]
[1749469677316,9.50254967,156.01,156.0,808.85677789]
[1749469677525,15.91239519,156.01,156.0,808.85677789]
[1749469677901,56.01239519,156.01,156.0,808.85677789]
[1749469678430,82.01239519,156.01,156.0,808.85677789]
[1749469680504,56.01239519,156.01,156.0,808.85677789]
[1749469682124,74.94636719,156.01,156.0,808.85677789]
[1749469682330,74.94636719,156.01,156.0,723.92699595]
[1749469682703,74.94636719,156.01,156.0,712.21799535]
[1749469683823,66.67239519,156.01,156.0,712.21799535]
[1749469684523,85.60636719,156.01,156.0,712.21799535]
[1749469684822,66.67239519,156.01,156.0,712.21799535]
[1749469686938,85.60636719,156.01,156.0,712.21799535]
[1749469687827,17.08984552,156.01,156.0,712.21799535]
[1749469688030,43.08984552,156.01,156.0,712.21799535]
[1749469688336,26.59239519,156.01,156.0,712.21799535]
[1749469688628,20.18254967,156.01,156.0,712.21799535]
[1749469688814,10.68,156.01,156.0,712.21799535]
[1749469689128,36.68,156.01,156.0,712.21799535]
[1749469689829,43.08984552,156.01,156.0,712.21799535]
[1749469690217,52.59239519,156.01,156.0,712.21799535]
[1749469690551,92.67239519,156.01,156.0,712.21799535]
[1749469690854,66.67239519,156.01,156.0,712.21799535]
[1749469691444,85.60636719,156.01,156.0,712.21799535]
[1749469691646,85.60636719,156.01,156.0,696.18346834]
[1749469692022,85.60636719,156.01,156.0,680.14894133]
[1749469692339,76.10381752,156.01,156.0,595.21915939]
[1749469692553,85.60636719,156.01,156.0,595.21915939]
[1749469692724,86.40616719,156.01,156.0,595.21915939]
[1749469693232,86.40616719,156.01,156.0,583.24915939]
[1749469694424,17.06984552,156.01,156.0,583.24915939]
[1749469694749,92.73239519,156.01,156.0,583.24915939]
[1749469697463,91.64667948,156.01,156.0,583.24915939]
[1749469700537,72.71270748,156.01,156.0,583.24915939]
[1749469701955,91.64667948,156.01,156.0,583.24915939]
[1749469702755,57.22984552,156.01,156.0,583.24915939]
[1749469703061,10.66,156.02,156.0,583.24915939]
[1749469703252,36.66,156.02,156.0,583.24915939]
[1749469703870,52.14286196,156.02,156.0,583.24915939]
[1749469704044,6.40984552,156.01,156.0,583.24915939]
[1749469704666,43.06959475,156.02,156.0,583.24915939]
[1749469704885,10.66,156.02,156.0,598.73202135]
[1749469705553,10.66,156.02,156.01,15.48286196]
[1749469706274,10.66,156.02,156.01,55.66286196]
[1749469707472,10.66,156.02,156.01,40.18]
[1749469707651,10.66,156.02,156.0,598.73202135]
[1749469708671,10.66,156.02,156.0,583.24915939]
[1749469708985,10.66,156.02,156.0,598.73202135]
[1749469710050,17.06958648,156.02,156.0,583.24915939]
[1749469710265,10.66,156.02,156.0,583.24915939]
[1749469711056,17.06953832,156.02,156.0,583.24915939]
[1749469711262,10.66,156.02,156.0,583.24915939]
[1749469711461,17.0694982,156.02,156.0,583.24915939]
[1749469711661,10.66,156.02,156.0,583.24915939]
[1749469712969,17.06960006,156.02,156.0,583.24915939]
[1749469713475,32.55246202,156.02,156.0,583.24915939]
[1749469713679,10.66,156.02,156.0,583.24915939]
[1749469714674,17.06949864,156.02,156.0,583.24915939]
[1749469715481,32.5523606,156.02,156.0,583.24915939]
[1749469716172,26.14286196,156.02,156.0,583.24915939]
[1749469716378,10.66,156.02,156.0,583.24915939]
[1749469717173,10.66,156.02,156.0,598.73202135]
[1749469717349,10.66,156.02,156.0,599.15366434]
[1749469717553,10.66,156.02,156.0,632.78342562]
[1749469717861,10.66,156.02,156.0,623.28915939]
[1749469718066,10.66,156.02,156.0,583.24915939]
[1749469719276,15.90295538,156.04,156.0,583.24915939]
[1749469719950,9.49426623,156.03,156.0,583.24915939]
[1749469720150,9.49426623,156.02,156.0,583.24915939]
[1749469720351,9.49426623,156.03,156.0,583.24915939]
[1749469721791,41.9025934,156.05,156.01,9.49426623]
[1749469723476,9.49426623,156.04,156.0,623.26915939]
[1749469723783,9.49426623,156.04,156.0,639.17358536]
[1749469723988,41.9025934,156.05,156.01,9.49426623]
[1749469725082,9.49426623,156.04,156.0,632.76342562]
[1749469725277,9.49426623,156.02,156.0,583.24915939]
[1749469725575,15.90363317,156.03,156.0,583.24915939]
[1749469726589,9.49426623,156.03,156.0,583.24915939]
[1749469726879,6.40875865,156.04,156.0,589.65940663]
[1749469727086,15.90302488,156.04,156.0,589.65940663]
[1749469727382,9.49426623,156.03,156.0,623.26915939]
[1749469728460,15.90333267,156.03,156.0,623.26915939]
[1749469730088,9.49426623,156.02,156.0,623.26915939]
[1749469730281,9.49426623,156.02,156.0,583.24915939]
[1749469730487,9.49426623,156.01,156.0,583.24915939]
[1749469731392,6.40906644,156.03,156.0,583.24915939]
[1749469731780,50.64,156.04,156.0,583.24915939]
[1749469731976,9.49426623,156.03,156.0,583.24915939]
[1749469732387,9.49426623,156.02,156.0,583.24915939]
[1749469733099,9.49426623,156.01,156.0,583.24915939]
[1749469733309,9.49426623,156.02,156.0,583.24915939]
[1749469736713,9.49426623,156.01,156.0,583.24915939]
[1749469737173,46.42949798,156.02,156.0,583.24915939]
[1749469737501,9.49426623,156.02,156.0,583.24915939]
[1749469737700,55.92341745,156.03,156.0,583.24915939]
[1749469737908,9.49426623,156.01,156.0,583.24915939]
[1749469739773,10.62,156.04,156.0,598.75872562]
[1749469739974,26.0,156.05,156.0,590.79015939]
[1749469740276,35.49426623,156.02,156.0,583.24915939]
[1749469740482,9.49426623,156.01,156.0,583.24915939]
[1749469741285,20.11426623,156.01,156.0,583.24915939]
[1749469741514,60.21426623,156.01,156.0,583.24915939]
[1749469742207,66.62411175,156.01,156.0,583.24915939]
[1749469745997,85.55808375,156.01,156.0,498.31937745]
[1749469747409,85.55808375,156.01,156.0,489.42478475]
[1749469748507,85.55808375,156.01,156.0,382.64500281]
[1749469748687,66.62411175,156.01,156.0,382.64500281]
[1749469749826,66.62411175,156.01,156.0,286.18500281]
[1749469752598,85.55808375,156.01,156.0,286.18500281]
[1749469753094,26.52411175,156.01,156.0,286.18500281]
[1749469753292,16.02219574,156.04,156.0,286.18500281]
[1749469753293,15.90387334,156.02,156.0,286.18500281]
[1749469753499,10.62,156.02,156.0,286.18500281]
[1749469753704,10.62,156.02,156.0,295.67926904]
[1749469753901,10.62,156.02,156.0,302.08946525]
[1749469754107,10.62,156.02,156.0,286.18500281]
[1749469754817,26.52400936,156.02,156.0,286.18500281]
[1749469755024,9.49426623,156.01,156.0,286.18500281]
[1749469756614,75.63426623,156.01,156.0,286.18500281]
[1749469757819,82.04411175,156.01,156.0,286.18500281]
[1749469759716,56.04411175,156.01,156.0,286.18500281]
[1749469760123,56.04411175,156.01,155.9,12.5]
[1749469760124,26.0,155.96,155.9,12.5]
[1749469760329,51.06,155.95,155.9,12.5]
[1749469760504,9.49426623,155.94,155.9,12.5]
[1749469760819,9.49426623,155.97,155.93,9.49426623]
[1749469761016,9.49426623,155.97,155.92,9.49426623]
[1749469761225,77.12,155.98,155.91,17.47566623]
[1749469761226,9.49426623,155.96,155.91,17.47566623]
[1749469761606,9.49426623,155.96,155.91,12.47566623]
[1749469761808,9.49426623,155.96,155.91,12.45066623]
[1749469761993,77.12,155.98,155.91,12.45066623]
[1749469762196,6.41231163,155.95,155.91,12.45066623]
[1749469762608,15.90630967,155.96,155.91,2.9564]
[1749469762822,15.90630967,155.96,155.91,12.45066623]
[1749469763123,9.49426623,155.93,155.91,2.9564]
[1749469764099,15.90755915,155.93,155.91,2.9564]
[1749469764500,56.30713264,155.94,155.91,2.9564]
[1749469764734,46.81277728,155.94,155.91,2.9564]
[1749469765032,6.41277728,155.94,155.91,2.9564]
[1749469765503,9.49426623,155.94,155.91,2.9564]
[1749469765702,15.90709879,155.94,155.91,2.9564]
[1749469766626,9.49426623,155.92,155.91,2.9564]
[1749469766824,9.49426623,155.92,155.9,14.1395]
[1749469766825,46.17426623,155.92,155.9,12.5]
[1749469767033,9.49426623,155.91,155.9,12.5]
[1749469768105,15.90822299,155.91,155.9,12.5]
[1749469773807,6.41395676,155.91,155.9,12.5]
[1749469774009,15.90822299,155.91,155.9,12.5]
[1749469774432,6.41395676,155.91,155.9,12.5]
[1749469774632,32.41367373,155.92,155.9,12.5]
[1749469774809,52.58793996,155.92,155.9,12.5]
[1749469775007,9.49426623,155.91,155.9,12.5]
[1749469776522,15.90822299,155.91,155.9,12.5]
[1749469778040,6.41395676,155.91,155.9,12.5]
[1749469778338,15.90822299,155.91,155.9,12.5]
[1749469779147,36.68,155.92,155.9,12.5]
[1749469779148,43.0936941,155.92,155.9,12.5]
[1749469779444,9.49426623,155.91,155.9,12.5]
[1749469780210,10.68,155.92,155.9,12.5]
[1749469780415,15.90747524,155.93,155.9,12.5]
[1749469780616,9.49426623,155.92,155.9,12.5]
[1749469781140,9.49426623,155.91,155.9,12.5]
[1749469782120,76.15426623,155.91,155.9,12.5]
[1749469782451,82.56822299,155.91,155.9,12.5]
[1749469782659,32.41395676,155.91,155.9,12.5]
[1749469782839,41.90822299,155.91,155.9,12.5]
[1749469783142,36.68,155.94,155.91,6.6636]
[1749469783309,9.49426623,155.92,155.91,6.6636]
[1749469784113,36.68,155.94,155.91,6.6636]
[1749469784319,9.49426623,155.92,155.91,6.6636]
[1749469785929,15.90781163,155.92,155.9,12.5]
[1749469786126,9.49426623,155.91,155.9,12.5]
[1749469787929,9.49426623,155.92,155.9,12.5]
[1749469788368,6.41322143,155.93,155.9,12.5]
[1749469788645,9.49426623,155.92,155.9,12.5]
[1749469788944,9.49426623,155.93,155.9,12.5]
[1749469789349,32.41280056,155.94,155.9,12.5]
[1749469789350,35.49426623,155.94,155.9,28.4085984]
[1749469789549,26.0,155.94,155.91,9.49426623]
[1749469790054,10.98,155.96,155.93,15.94376623]
[1749469790227,20.47426623,155.96,155.93,6.4495]
[1749469790422,9.49426623,155.96,155.93,6.4495]
[1749469794753,41.90605039,155.97,155.93,22.35688668]
[1749469795048,9.49426623,155.97,155.93,22.35688668]
[1749469795249,9.49426623,155.97,155.93,12.86262045]
[1749469795452,47.92,155.99,155.93,12.86262045]
[1749469795453,73.92,155.99,155.95,9.49426623]
[1749469795943,26.0,155.99,155.95,9.49426623]
[1749469796326,32.41075579,155.99,155.94,6.41269865]
[1749469796526,41.90502202,155.99,155.95,9.49426623]
[1749469797424,15.90547541,155.98,155.93,12.86246436]
[1749469797741,15.90547541,155.98,155.93,22.35673059]
[1749469798453,10.98,156.01,155.94,9.49426623]
[1749469798656,9.49426623,155.99,155.94,9.49426623]
[1749469799557,9.49426623,155.99,155.95,9.49426623]
[1749469799855,17.39008395,156.01,155.95,15.90651438]
[1749469800060,9.49426623,155.99,155.95,15.90651438]
[1749469800756,9.49426623,155.97,155.93,15.94376623]
[1749469800927,9.49426623,155.97,155.93,6.4495]
[1749469801226,10.98,156.01,155.95,9.49426623]
[1749469801427,9.49426623,155.99,155.95,9.49426623]
[1749469801641,9.49426623,155.99,155.95,15.90652071]
[1749469802051,15.90495319,155.99,155.95,9.49426623]
[1749469802345,9.49426623,155.96,155.93,6.4495]
[1749469802554,9.49426623,155.95,155.93,6.4495]
[1749469803833,15.90658977,155.95,155.93,6.4495]
[1749469804040,9.49426623,155.94,155.92,1.5771]
[1749469804432,6.41232354,155.95,155.9,12.5]
[1749469804433,9.49426623,155.93,155.9,12.5]
[1749469804747,9.49426623,155.92,155.9,12.5]
[1749469805332,9.49426623,155.91,155.9,12.5]
[1749469805657,9.49426623,155.92,155.9,12.5]
[1749469805837,9.49426623,155.94,155.9,18.91419534]
[1749469806929,9.49426623,155.93,155.9,18.91419534]
[1749469807332,22.6726,155.89,155.79,0.7957287]
[1749469807547,26.0,155.85,155.79,0.7957287]
[1749469807731,6.41683778,155.84,155.79,0.7957287]
[1749469807942,26.0,155.84,155.79,0.7957287]
[1749469808131,26.0,155.85,155.8,9.49426623]
[1749469808448,26.0,155.87,155.84,9.49426623]
[1749469808752,4.78908886,155.89,155.84,9.49426623]
[1749469808953,26.0,155.89,155.84,9.49426623]
[1749469809138,9.49426623,155.88,155.83,50.87426623]
[1749469809449,35.49426623,155.87,155.83,41.38]
[1749469809660,9.49426623,155.86,155.83,41.38]
[1749469810356,6.41642605,155.85,155.81,9.49426623]
[1749469810556,6.41610982,155.86,155.83,9.49426623]
[1749469810934,6.41610982,155.86,155.82,9.49426623]
[1749469811553,6.41610982,155.86,155.81,9.6364278]
[1749469811751,15.91037605,155.86,155.81,0.14216157]
[1749469811954,9.49426623,155.85,155.8,28.14391509]
[1749469812150,9.49426623,155.85,155.8,69.50391509]
[1749469812468,6.41654282,155.85,155.81,0.14216157]
[1749469812675,26.0,155.88,155.83,9.49426623]
[1749469812846,35.49426623,155.88,155.83,9.49426623]
[1749469813233,9.49426623,155.87,155.82,9.49426623]
[1749469814560,15.91018361,155.87,155.82,9.49426623]
[1749469814765,9.49426623,155.87,155.82,15.91189801]
[1749469815361,15.90992376,155.87,155.82,15.91189801]
[1749469815673,41.90949039,155.88,155.83,9.49426623]
[1749469816560,9.49426623,155.87,155.82,9.49426623]
[1749469816957,32.41522416,155.88,155.82,9.49426623]
[1749469817155,32.41522416,155.88,155.83,9.49426623]
[1749469817356,35.49426623,155.88,155.81,25.35196028]
[1749469817703,35.49426623,155.88,155.83,9.49426623]
[1749469818053,41.90946292,155.88,155.83,9.49426623]
[1749469819474,9.49426623,155.87,155.82,9.49426623]
[1749469819865,9.49426623,155.87,155.83,9.49426623]
[1749469820173,9.49426623,155.87,155.82,9.49426623]
[1749469820371,9.49426623,155.85,155.81,71.33181043]
[1749469820575,9.49426623,155.84,155.81,52.54]
[1749469820785,15.91119652,155.84,155.81,52.54]
[1749469821780,15.91119652,155.84,155.81,11.36]
[1749469822660,15.91172682,155.83,155.81,11.36]
[1749469822861,35.49426623,155.82,155.79,0.7957287]
[1749469823161,9.49426623,155.81,155.79,0.7957287]
[1749469823974,15.91238344,155.81,155.79,0.7957287]
[1749469824284,9.49426623,155.8,155.79,0.7957287]
[1749469826074,15.91275146,155.8,155.79,0.7957287]
[1749469827764,41.91275146,155.8,155.79,0.7957287]
[1749469834189,16.0407723,155.86,155.79,0.7957287]
[1749469834372,22.45188766,155.89,155.82,9.49426623]
[1749469834574,9.49426623,155.86,155.82,9.49426623]
[1749469834792,9.49426623,155.88,155.83,9.49426623]
[1749469835101,9.49426623,155.87,155.82,9.49426623]
[1749469835306,9.49426623,155.83,155.81,6.2229]
[1749469835609,9.49426623,155.88,155.81,6.2229]
[1749469835610,9.49426623,155.82,155.81,6.2229]
[1749469835907,9.49426623,155.82,155.79,42.0557287]
[1749469835908,9.49426623,155.82,155.79,0.7957287]
[1749469836188,9.49426623,155.81,155.79,0.7957287]
[1749469836570,9.49426623,155.8,155.79,0.7957287]
[1749469837784,6.41834155,155.81,155.79,0.7957287]
[1749469837975,9.49426623,155.8,155.79,0.7957287]
[1749469838371,6.41834155,155.81,155.79,0.7957287]
[1749469838574,6.4176614,155.82,155.79,0.7957287]
[1749469838783,35.49426623,155.8,155.79,0.7957287]
[1749469840471,26.0,155.8,155.79,0.7957287]
[1749469840673,35.49426623,155.8,155.79,0.7957287]
[1749469848403,41.91275146,155.8,155.79,0.7957287]
[1749469849570,46.66941748,155.8,155.79,0.7957287]
[1749469849772,41.91275146,155.8,155.79,0.7957287]
[1749469850016,56.16368371,155.8,155.79,0.7957287]
[1749469850319,97.50368371,155.8,155.79,0.7957287]
[1749469851777,4.75666602,155.8,155.79,0.7957287]
[1749469851977,9.49426623,155.81,155.79,0.7957287]
[1749469852197,35.49426623,155.81,155.79,0.7957287]
[1749469852396,9.49426623,155.8,155.79,0.2957287]
[1749469852885,26.0,155.81,155.79,0.2957287]
[1749469853184,47.30158184,155.87,155.79,6.7145286]
[1749469853185,9.49426623,155.83,155.79,6.7145286]
[1749469853695,35.49426623,155.83,155.79,6.7145286]
[1749469853994,4.75666602,155.87,155.8,18.79181043]
[1749469854195,9.49426623,155.84,155.8,36.06417666]
[1749469854498,35.49426623,155.84,155.8,26.56991043]
[1749469854690,40.25093225,155.84,155.8,26.56991043]
[1749469854890,9.49426623,155.83,155.8,7.7781]
[1749469855513,9.49426623,155.83,155.8,14.19648166]
[1749469855808,41.91119457,155.84,155.8,17.27236623]
[1749469856312,9.49426623,155.83,155.8,7.7781]
[1749469856516,41.91119457,155.84,155.8,7.7781]
[1749469857003,9.49426623,155.81,155.79,0.2957287]
[1749469857202,26.0,155.84,155.79,0.2957287]
[1749469857203,9.49426623,155.8,155.79,0.2957287]
[1749469857516,4.75666602,155.83,155.79,9.78999493]
[1749469857692,35.49426623,155.84,155.79,0.2957287]
[1749469857890,35.49426623,155.84,155.79,16.20878536]
[1749469858205,9.49426623,155.83,155.79,6.71451913]
[1749469859100,9.49426623,155.83,155.75,41.28]
[1749469859101,19.25,155.79,155.6,1.527]
[1749469859292,19.25,155.79,155.64,25.451464]
[1749469859293,26.0,155.69,155.64,25.451464]
[1749469859604,26.0,155.69,155.66,9.49426623]
[1749469859806,26.0,155.7,155.67,9.49426623]
[1749469859987,26.0,155.7,155.65,0.14216157]
[1749469860310,35.49426623,155.73,155.67,9.49426623]
[1749469860813,26.0,155.73,155.68,9.49426623]
[1749469861010,41.9157607,155.73,155.68,9.49426623]
[1749469861688,32.42149447,155.73,155.68,9.49426623]
[1749469862420,9.49426623,155.72,155.67,9.49426623]
[1749469862736,41.9157607,155.73,155.68,9.49426623]
[1749469863016,35.49426623,155.73,155.68,9.49426623]
[1749469863189,41.53489343,155.73,155.68,15.53489343]
[1749469863802,47.95641206,155.73,155.68,15.53489343]
[1749469863994,26.0,155.69,155.65,18.79181043]
[1749469864192,4.7877464,155.72,155.65,34.18454229]
[1749469864399,26.0,155.71,155.67,15.53489343]
[1749469864808,11.20829954,155.75,155.69,34.32670386]
[1749469865002,26.0,155.72,155.69,18.79181043]
[1749469865315,26.0,155.72,155.68,15.53489343]
[1749469866006,41.53489343,155.72,155.67,63.67844764]
[1749469866209,15.53489343,155.7,155.67,41.72]
[1749469866416,15.53489343,155.69,155.67,41.72]
[1749469866618,15.53489343,155.68,155.64,6.1694]
[1749469866816,15.53489343,155.68,155.64,5.6694]
[1749469867486,15.53489343,155.68,155.64,12.09444461]
[1749469867717,26.0,155.68,155.64,27.62933804]
[1749469867924,26.0,155.68,155.65,15.53489343]
[1749469868292,32.422208,155.71,155.65,15.53489343]
[1749469868512,15.53489343,155.69,155.65,15.53489343]
[1749469868717,15.53489343,155.7,155.65,34.18454229]
[1749469868911,41.53489343,155.7,155.65,34.18454229]
[1749469869104,15.53489343,155.69,155.65,34.18454229]
[1749469869615,15.53489343,155.69,155.66,6.42425799]
[1749469870022,26.0,155.7,155.66,6.42425799]
[1749469870315,41.53489343,155.7,155.66,6.42425799]
[1749469870696,15.53489343,155.69,155.66,6.42425799]
[1749469871800,41.53489343,155.7,155.66,6.42425799]
[1749469872409,26.0,155.7,155.66,6.42425799]
[1749469872725,15.53489343,155.73,155.68,15.53489343]
[1749469872902,41.53489343,155.73,155.68,15.53489343]
[1749469873706,26.0,155.73,155.69,6.4230201]
[1749469873896,41.53489343,155.73,155.69,6.4230201]
[1749469874102,41.53489343,155.73,155.68,6.42327649]
[1749469874295,15.53489343,155.71,155.67,66.8355848]
[1749469874498,15.53489343,155.71,155.67,82.37047823]
[1749469874716,15.53489343,155.72,155.67,82.37047823]
[1749469875428,26.0,155.73,155.67,82.37047823]
[1749469875633,15.53489343,155.72,155.68,15.53489343]
[1749469876624,15.53489343,155.72,155.69,6.4230201]
[1749469877625,15.53489343,155.72,155.68,6.4232801]
[1749469877831,41.53489343,155.73,155.68,21.95817353]
[1749469878204,41.53489343,155.73,155.68,6.4232801]
[1749469878425,41.53489343,155.73,155.69,15.53489343]
[1749469878905,41.53489343,155.73,155.69,21.95788972]
[1749469879403,41.53489343,155.73,155.69,6.42299629]
[1749469879612,15.53489343,155.72,155.69,6.42299629]
[1749469879812,41.53489343,155.73,155.69,6.42299629]
[1749469880025,26.0,155.73,155.69,6.42299629]
[1749469880233,15.53489343,155.72,155.68,6.42331796]
[1749469880402,26.0,155.73,155.68,21.95821139]